fUSD/lending_fUSD_20260601
["ID","MTS","AMOUNT","RATE_DAILY","PERIOD"]
[423627076,1780264250000,-9544.6687,0.00037501,2]
[423627075,1780264250000,-200.0,0.000375,15]
[423627072,1780264250000,-150.0,0.00037449,2]
[423627019,1780264250000,-5000.0,0.00037122,2]
[423627050,1780264250000,-5000.0,0.00037373,2]
[423627048,1780264250000,-166.87550834,0.00037359,60]
[423627063,1780264250000,-250.0,0.00037373,2]
[423627049,1780264250000,-9544.6687,0.00037373,2]
[423627052,1780264250000,-5000.0,0.00037373,2]
[423627022,1780264250000,-175.28622892,0.000372,120]
[423627021,1780264250000,-152.0,0.00037165,4]
[423627023,1780264250000,-175.28622889,0.000372,120]
[423627025,1780264250000,-175.28622889,0.000372,120]
[423627028,1780264250000,-9544.6687,0.00037245,2]
[423627027,1780264250000,-150.0,0.00037211,7]
[423627029,1780264250000,-5800.0,0.00037248,2]
[423627037,1780264250000,-334.48622721,0.0003729,120]
[423627036,1780264250000,-3271.95164303,0.0003729,120]
[423627030,1780264250000,-5800.0,0.00037257,2]
[423627034,1780264250000,-5800.0,0.00037282,2]
[423627031,1780264250000,-166.84,0.00037259,60]
[423627026,1780264250000,-500.0,0.00037205,2]
[423627038,1780264250000,-5800.0,0.00037291,2]
[423627043,1780264250000,-156.64981509,0.000373,30]
[423627045,1780264250000,-291.78153607,0.000373,30]
[423627044,1780264250000,-156.64981509,0.000373,30]
[423627042,1780264250000,-156.64981511,0.000373,30]
[423627046,1780264250000,-291.78153606,0.000373,30]
[423627041,1780264250000,-261.60078704,0.000373,30]
[423627047,1780264250000,-291.78153606,0.000373,30]
[423627040,1780264250000,-375.05,0.000373,60]
[423627033,1780264250000,-5800.0,0.00037274,2]
[423627032,1780264250000,-5800.0,0.00037265,2]
[423627035,1780264250000,-607.0,0.00037282,13]
[423627039,1780264250000,-5800.0,0.00037299,2]
[423627125,1780264251000,-500.0,0.00037904,60]
[423627123,1780264251000,-1300.0,0.00037904,60]
[423627121,1780264251000,-375.05,0.0003784,86]
[423627122,1780264251000,-163.0,0.0003788,11]
[423627124,1780264251000,-500.0,0.00037904,60]
[423627119,1780264251000,-1590.0,0.00037833,11]
[423627111,1780264251000,-250.0,0.00037771,2]
[423627114,1780264251000,-2319.0,0.00037783,11]
[423627110,1780264251000,-250.0,0.00037771,2]
[423627107,1780264251000,-5000.0,0.00037771,2]
[423627106,1780264251000,-5000.0,0.00037771,2]
[423627112,1780264251000,-250.0,0.00037771,2]
[423627115,1780264251000,-6714.12,0.000378,2]
[423627116,1780264251000,-2000.0,0.00037815,13]
[423627133,1780264251000,-2333.0,0.00038,11]
[423627118,1780264251000,-2319.0,0.00037832,11]
[423627117,1780264251000,-607.0,0.00037816,13]
[423627127,1780264251000,-2319.0,0.00037939,11]
[423627137,1780264251000,-2343.05,0.00038,14]
[423627138,1780264251000,-555.0,0.00038,10]
[423627126,1780264251000,-150.0,0.00037905,7]
[423627128,1780264251000,-8000.0,0.00038,60]
[423627130,1780264251000,-153.0,0.00038,30]
[423627132,1780264251000,-151.0,0.00038,120]
[423627134,1780264251000,-221.0,0.00038,120]
[423627129,1780264251000,-1679.24924646,0.00038,120]
[423627135,1780264251000,-307.0,0.00038,30]
[423627104,1780264251000,-5000.0,0.00037771,2]
[423627120,1780264251000,-9000.0,0.00037834,2]
[423627109,1780264251000,-250.0,0.00037771,2]
[423627079,1780264251000,-25000.0,0.00037557,10]
[423627105,1780264251000,-5000.0,0.00037771,2]
[423627077,1780264251000,-25000.0,0.0003754,10]
[423627089,1780264251000,-311.6,0.00037572,2]
[423627131,1780264251000,-167.0,0.00038,120]
[423627078,1780264251000,-25000.0,0.00037549,10]
[423627080,1780264251000,-6732.367104,0.00037562,2]
[423627081,1780264251000,-2000.0,0.00037571,2]
[423627083,1780264251000,-300.0,0.00037572,2]
[423627082,1780264251000,-10000.0,0.00037571,2]
[423627084,1780264251000,-300.0,0.00037572,2]
[423627088,1780264251000,-300.0,0.00037572,2]
[423627086,1780264251000,-300.0,0.00037572,2]
[423627085,1780264251000,-300.0,0.00037572,2]
[423627087,1780264251000,-300.0,0.00037572,2]
[423627102,1780264251000,-5000.0,0.00037771,2]
[423627090,1780264251000,-34745.0,0.000376,30]
[423627091,1780264251000,-1845.3599,0.000376,120]
[423627096,1780264251000,-152.0,0.00037633,7]
[423627095,1780264251000,-681.7626,0.00037629,2]
[423627097,1780264251000,-3098.87,0.0003765,30]
[423627093,1780264251000,-150.0,0.0003761,120]
[423627094,1780264251000,-9544.6687,0.00037629,2]
[423627098,1780264251000,-150.0,0.00037694,2]
[423627099,1780264251000,-2319.0,0.00037751,11]
[423627100,1780264251000,-163.0,0.00037751,11]
[423627101,1780264251000,-150.0,0.00037766,7]
[423627103,1780264251000,-5000.0,0.00037771,2]
[423627113,1780264251000,-250.0,0.00037771,2]
[423627108,1780264251000,-250.0,0.00037771,2]
[423627092,1780264251000,-1000.0,0.000376,120]
[423627141,1780264251000,-165.15,0.00038014,120]
[423627136,1780264251000,-222.0,0.00038,120]
[423627140,1780264251000,-1250.0,0.00038002,2]
[423627178,1780264251000,-6714.12,0.000383,2]
[423627175,1780264251000,-25000.0,0.000382,10]
[423627176,1780264251000,-201.47550834,0.0003828,2]
[423627171,1780264251000,-201.47550834,0.0003818,2]
[423627177,1780264251000,-6714.12,0.000383,2]
[423627173,1780264251000,-25000.0,0.00038191,10]
[423627183,1780264251000,-1723.0,0.00038329,120]
[423627182,1780264251000,-1336.5,0.00038329,120]
[423627193,1780264251000,-500.0,0.00038331,2]
[423627184,1780264251000,-1723.0,0.00038329,120]
[423627186,1780264251000,-500.0,0.00038331,2]
[423627185,1780264251000,-500.0,0.00038331,2]
[423627189,1780264251000,-500.0,0.00038331,2]
[423627190,1780264251000,-500.0,0.00038331,2]
[423627192,1780264251000,-500.0,0.00038331,2]
[423627191,1780264251000,-500.0,0.00038331,2]
[423627188,1780264251000,-500.0,0.00038331,2]
[423627194,1780264251000,-500.0,0.00038331,2]
[423627196,1780264251000,-500.0,0.00038331,2]
[423627197,1780264251000,-500.0,0.00038331,2]
[423627198,1780264251000,-500.0,0.00038331,2]
[423627201,1780264251000,-500.0,0.00038331,2]
[423627195,1780264251000,-500.0,0.00038331,2]
[423627200,1780264251000,-500.0,0.00038331,2]
[423627199,1780264251000,-500.0,0.00038331,2]
[423627202,1780264251000,-500.0,0.00038331,2]
[423627204,1780264251000,-500.0,0.00038331,2]
[423627144,1780264251000,-150.0,0.00038044,7]
[423627203,1780264251000,-500.0,0.00038331,2]
[423627174,1780264251000,-14570.66552654,0.000382,10]
[423627172,1780264251000,-25000.0,0.00038182,10]
[423627187,1780264251000,-500.0,0.00038331,2]
[423627180,1780264251000,-150.0,0.00038321,7]
[423627143,1780264251000,-163.0,0.0003803,11]
[423627181,1780264251000,-1336.5,0.00038329,120]
[423627150,1780264251000,-679.439,0.000381,30]
[423627152,1780264251000,-25000.0,0.00038112,10]
[423627153,1780264251000,-25000.0,0.00038121,10]
[423627151,1780264251000,-25000.0,0.00038103,10]
[423627148,1780264251000,-1590.0,0.00038071,11]
[423627146,1780264251000,-1590.0,0.00038055,11]
[423627154,1780264251000,-256.1,0.00038125,30]
[423627147,1780264251000,-350.0,0.00038068,8]
[423627145,1780264251000,-2319.0,0.00038055,11]
[423627156,1780264251000,-25000.0,0.00038138,10]
[423627166,1780264251000,-250.0,0.00038169,2]
[423627167,1780264251000,-250.0,0.00038169,2]
[423627149,1780264251000,-25000.0,0.00038094,10]
[423627164,1780264251000,-5000.0,0.00038169,2]
[423627179,1780264251000,-15446.78536993,0.00038302,2]
[423627162,1780264251000,-5000.0,0.00038169,2]
[423627168,1780264251000,-250.0,0.00038169,2]
[423627169,1780264251000,-250.0,0.00038169,2]
[423627165,1780264251000,-250.0,0.00038169,2]
[423627160,1780264251000,-5000.0,0.00038169,2]
[423627161,1780264251000,-5000.0,0.00038169,2]
[423627170,1780264251000,-25000.0,0.00038174,10]
[423627159,1780264251000,-25000.0,0.00038165,10]
[423627157,1780264251000,-25000.0,0.00038147,10]
[423627158,1780264251000,-25000.0,0.00038156,10]
[423627155,1780264251000,-25000.0,0.0003813,10]
[423627163,1780264251000,-5000.0,0.00038169,2]
[423627248,1780264252000,-2280.95,0.00038356,2]
[423627242,1780264252000,-500.0,0.00038356,2]
[423627243,1780264252000,-500.0,0.00038356,2]
[423627244,1780264252000,-500.0,0.00038356,2]
[423627241,1780264252000,-500.0,0.00038356,2]
[423627238,1780264252000,-500.0,0.00038356,2]
[423627240,1780264252000,-500.0,0.00038356,2]
[423627239,1780264252000,-500.0,0.00038356,2]
[423627246,1780264252000,-314.50421768,0.00038356,2]
[423627247,1780264252000,-595.48952811,0.00038356,2]
[423627249,1780264252000,-2280.95,0.00038356,2]
[423627245,1780264252000,-500.0,0.00038356,2]
[423627252,1780264252000,-2280.95,0.00038356,2]
[423627269,1780264252000,-2280.95,0.00038356,2]
[423627254,1780264252000,-2280.95,0.00038356,2]
[423627251,1780264252000,-2280.95,0.00038356,2]
[423627253,1780264252000,-2280.95,0.00038356,2]
[423627258,1780264252000,-2280.95,0.00038356,2]
[423627257,1780264252000,-2280.95,0.00038356,2]
[423627256,1780264252000,-2280.95,0.00038356,2]
[423627255,1780264252000,-2280.95,0.00038356,2]
[423627259,1780264252000,-2280.95,0.00038356,2]
[423627261,1780264252000,-2280.95,0.00038356,2]
[423627266,1780264252000,-2280.95,0.00038356,2]
[423627263,1780264252000,-2280.95,0.00038356,2]
[423627265,1780264252000,-2280.95,0.00038356,2]
[423627237,1780264252000,-500.0,0.00038356,2]
[423627250,1780264252000,-2280.95,0.00038356,2]
[423627235,1780264252000,-500.0,0.00038356,2]
[423627205,1780264252000,-295.66812534,0.00038331,2]
[423627225,1780264252000,-500.0,0.00038356,2]
[423627264,1780264252000,-2280.95,0.00038356,2]
[423627207,1780264252000,-607.0,0.0003835,14]
[423627206,1780264252000,-152.0,0.0003834,7]
[423627219,1780264252000,-500.0,0.00038356,2]
[423627220,1780264252000,-500.0,0.00038356,2]
[423627208,1780264252000,-2319.0,0.00038351,11]
[423627221,1780264252000,-500.0,0.00038356,2]
[423627209,1780264252000,-10070.1813307,0.00038353,2]
[423627210,1780264252000,-500.0,0.00038356,2]
[423627211,1780264252000,-500.0,0.00038356,2]
[423627217,1780264252000,-500.0,0.00038356,2]
[423627213,1780264252000,-500.0,0.00038356,2]
[423627212,1780264252000,-500.0,0.00038356,2]
[423627215,1780264252000,-500.0,0.00038356,2]
[423627216,1780264252000,-500.0,0.00038356,2]
[423627218,1780264252000,-157.98011528,0.00038356,2]
[423627214,1780264252000,-500.0,0.00038356,2]
[423627222,1780264252000,-500.0,0.00038356,2]
[423627224,1780264252000,-500.0,0.00038356,2]
[423627223,1780264252000,-500.0,0.00038356,2]
[423627227,1780264252000,-500.0,0.00038356,2]
[423627228,1780264252000,-500.0,0.00038356,2]
[423627233,1780264252000,-336.03712649,0.00038356,2]
[423627231,1780264252000,-500.0,0.00038356,2]
[423627232,1780264252000,-500.0,0.00038356,2]
[423627229,1780264252000,-500.0,0.00038356,2]
[423627230,1780264252000,-500.0,0.00038356,2]
[423627234,1780264252000,-500.0,0.00038356,2]
[423627226,1780264252000,-500.0,0.00038356,2]
[423627236,1780264252000,-500.0,0.00038356,2]
[423627268,1780264252000,-2280.95,0.00038356,2]
[423627262,1780264252000,-2280.95,0.00038356,2]
[423627270,1780264252000,-2280.95,0.00038356,2]
[423627301,1780264252000,-500.0,0.00038356,2]
[423627302,1780264252000,-500.0,0.00038356,2]
[423627307,1780264252000,-500.0,0.00038356,2]
[423627305,1780264252000,-500.0,0.00038356,2]
[423627306,1780264252000,-500.0,0.00038356,2]
[423627304,1780264252000,-500.0,0.00038356,2]
[423627303,1780264252000,-500.0,0.00038356,2]
[423627310,1780264252000,-500.0,0.00038356,2]
[423627312,1780264252000,-500.0,0.00038356,2]
[423627319,1780264252000,-500.0,0.00038356,2]
[423627318,1780264252000,-500.0,0.00038356,2]
[423627315,1780264252000,-502.0,0.00038356,2]
[423627314,1780264252000,-500.0,0.00038356,2]
[423627316,1780264252000,-592.88734821,0.00038356,2]
[423627313,1780264252000,-500.0,0.00038356,2]
[423627311,1780264252000,-500.0,0.00038356,2]
[423627320,1780264252000,-500.0,0.00038356,2]
[423627317,1780264252000,-263.91170216,0.00038356,2]
[423627321,1780264252000,-500.0,0.00038356,2]
[423627323,1780264252000,-500.0,0.00038356,2]
[423627327,1780264252000,-300.0,0.00038356,2]
[423627325,1780264252000,-300.0,0.00038356,2]
[423627322,1780264252000,-500.0,0.00038356,2]
[423627326,1780264252000,-300.0,0.00038356,2]
[423627324,1780264252000,-295.6860452,0.00038356,2]
[423627328,1780264252000,-300.0,0.00038356,2]
[423627331,1780264252000,-300.0,0.00038356,2]
[423627330,1780264252000,-300.0,0.00038356,2]
[423627267,1780264252000,-2280.95,0.00038356,2]
[423627297,1780264252000,-500.0,0.00038356,2]
[423627299,1780264252000,-500.0,0.00038356,2]
[423627329,1780264252000,-300.0,0.00038356,2]
[423627300,1780264252000,-500.0,0.00038356,2]
[423627271,1780264252000,-2281.07781492,0.00038356,2]
[423627260,1780264252000,-2280.95,0.00038356,2]
[423627283,1780264252000,-1337.61,0.00038356,2]
[423627273,1780264252000,-1337.61,0.00038356,2]
[423627272,1780264252000,-1337.61,0.00038356,2]
[423627274,1780264252000,-1337.61,0.00038356,2]
[423627280,1780264252000,-1337.61,0.00038356,2]
[423627275,1780264252000,-1337.61,0.00038356,2]
[423627308,1780264252000,-500.0,0.00038356,2]
[423627276,1780264252000,-1337.61,0.00038356,2]
[423627281,1780264252000,-1337.61,0.00038356,2]
[423627282,1780264252000,-1337.61,0.00038356,2]
[423627279,1780264252000,-1337.61,0.00038356,2]
[423627277,1780264252000,-1337.61,0.00038356,2]
[423627278,1780264252000,-1337.61,0.00038356,2]
[423627296,1780264252000,-500.0,0.00038356,2]
[423627285,1780264252000,-1337.61,0.00038356,2]
[423627298,1780264252000,-500.0,0.00038356,2]
[423627292,1780264252000,-1337.61,0.00038356,2]
[423627289,1780264252000,-1337.61,0.00038356,2]
[423627294,1780264252000,-1337.61,0.00038356,2]
[423627293,1780264252000,-1337.61,0.00038356,2]
[423627309,1780264252000,-500.0,0.00038356,2]
[423627290,1780264252000,-1337.61,0.00038356,2]
[423627288,1780264252000,-1337.61,0.00038356,2]
[423627287,1780264252000,-1337.61,0.00038356,2]
[423627295,1780264252000,-1337.74342065,0.00038356,2]
[423627284,1780264252000,-1337.61,0.00038356,2]
[423627286,1780264252000,-1337.61,0.00038356,2]
[423627291,1780264252000,-1337.61,0.00038356,2]
[423627379,1780264253000,-2420.64172213,0.00038402,10]
[423627375,1780264253000,-2420.64172213,0.00038402,10]
[423627374,1780264253000,-2420.64172213,0.00038402,10]
[423627365,1780264253000,-151.0,0.00038356,2]
[423627373,1780264253000,-2420.64172225,0.00038402,10]
[423627369,1780264253000,-2319.0,0.00038384,11]
[423627370,1780264253000,-374.27,0.000384,120]
[423627368,1780264253000,-375.05,0.0003838,105]
[423627367,1780264253000,-201.47550834,0.0003838,2]
[423627371,1780264253000,-221.0,0.000384,120]
[423627364,1780264253000,-3620.0,0.00038356,5]
[423627372,1780264253000,-249.51,0.000384,120]
[423627376,1780264253000,-2420.64172213,0.00038402,10]
[423627392,1780264253000,-171.71,0.00038493,30]
[423627378,1780264253000,-2420.64172213,0.00038402,10]
[423627382,1780264253000,-2420.64172213,0.00038402,10]
[423627384,1780264253000,-2420.64172213,0.00038402,10]
[423627380,1780264253000,-2420.64172213,0.00038402,10]
[423627383,1780264253000,-2420.64172213,0.00038402,10]
[423627381,1780264253000,-2420.64172213,0.00038402,10]
[423627385,1780264253000,-2420.64172213,0.00038402,10]
[423627386,1780264253000,-150.0,0.0003842,30]
[423627387,1780264253000,-2849.85177406,0.0003842,30]
[423627388,1780264253000,-150.0,0.0003842,30]
[423627393,1780264253000,-350.0,0.00038508,7]
[423627389,1780264253000,-1703.87007754,0.0003842,30]
[423627391,1780264253000,-201.47550834,0.0003848,2]
[423627366,1780264253000,-350.0,0.00038358,9]
[423627377,1780264253000,-2420.64172213,0.00038402,10]
[423627363,1780264253000,-1134.34661754,0.00038356,120]
[423627345,1780264253000,-1125.0,0.00038356,120]
[423627359,1780264253000,-1125.0,0.00038356,120]
[423627333,1780264253000,-300.0,0.00038356,2]
[423627335,1780264253000,-300.0,0.00038356,2]
[423627334,1780264253000,-300.0,0.00038356,2]
[423627332,1780264253000,-300.0,0.00038356,2]
[423627336,1780264253000,-300.0,0.00038356,2]
[423627343,1780264253000,-1125.0,0.00038356,120]
[423627338,1780264253000,-300.0,0.00038356,2]
[423627341,1780264253000,-1125.0,0.00038356,120]
[423627347,1780264253000,-1125.0,0.00038356,120]
[423627346,1780264253000,-1125.0,0.00038356,120]
[423627344,1780264253000,-1125.0,0.00038356,120]
[423627337,1780264253000,-300.0,0.00038356,2]
[423627340,1780264253000,-1125.0,0.00038356,120]
[423627356,1780264253000,-1125.0,0.00038356,120]
[423627339,1780264253000,-170.45011995,0.00038356,2]
[423627342,1780264253000,-1125.0,0.00038356,120]
[423627350,1780264253000,-1125.0,0.00038356,120]
[423627360,1780264253000,-1125.0,0.00038356,120]
[423627361,1780264253000,-1125.0,0.00038356,120]
[423627354,1780264253000,-1125.0,0.00038356,120]
[423627351,1780264253000,-1125.0,0.00038356,120]
[423627349,1780264253000,-1125.0,0.00038356,120]
[423627353,1780264253000,-1125.0,0.00038356,120]
[423627352,1780264253000,-1125.0,0.00038356,120]
[423627362,1780264253000,-1125.0,0.00038356,120]
[423627358,1780264253000,-1125.0,0.00038356,120]
[423627357,1780264253000,-1125.0,0.00038356,120]
[423627355,1780264253000,-1125.0,0.00038356,120]
[423627348,1780264253000,-1125.0,0.00038356,120]
[423627390,1780264253000,-2319.0,0.00038439,11]
[423627394,1780264253000,-2000.0,0.00038511,120]
[423627396,1780264253000,-1590.0,0.00038513,11]
[423627427,1780264253000,-800.0,0.00038728,14]
[423627434,1780264253000,-800.0,0.00038728,14]
[423627432,1780264253000,-800.0,0.00038728,14]
[423627431,1780264253000,-800.0,0.00038728,14]
[423627430,1780264253000,-800.0,0.00038728,14]
[423627436,1780264253000,-46283.59419265,0.00038752,6]
[423627433,1780264253000,-800.0,0.00038728,14]
[423627437,1780264253000,-350.0,0.00038767,5]
[423627438,1780264253000,-195.31,0.00038782,30]
[423627450,1780264253000,-151.0,0.00038892,14]
[423627440,1780264253000,-34745.0,0.000388,30]
[423627439,1780264253000,-1001.0,0.00038795,7]
[423627448,1780264253000,-607.0,0.00038884,14]
[423627435,1780264253000,-800.58,0.00038743,7]
[423627447,1780264253000,-150.00000064,0.00038877,7]
[423627444,1780264253000,-337.28510682,0.00038849,120]
[423627445,1780264253000,-150.0,0.00038877,7]
[423627442,1780264253000,-412.23735277,0.00038849,120]
[423627449,1780264253000,-1000.0,0.00038886,90]
[423627446,1780264253000,-221.00621176,0.00038877,7]
[423627451,1780264253000,-700898.87599109,0.00038895,30]
[423627453,1780264253000,-383.09583771,0.000389,2]
[423627452,1780264253000,-410617.13179119,0.000389,2]
[423627455,1780264253000,-375.05,0.0003892,116]
[423627454,1780264253000,-310.0,0.00038904,55]
[423627456,1780264253000,-888.0,0.0003893,5]
[423627457,1780264253000,-968.33,0.00038934,7]
[423627395,1780264253000,-163.0,0.00038513,11]
[423627443,1780264253000,-256.9251096,0.00038849,120]
[423627428,1780264253000,-800.0,0.00038728,14]
[423627441,1780264253000,-221.0,0.000388,120]
[423627426,1780264253000,-1300.0,0.00038726,60]
[423627400,1780264253000,-500.0,0.00038548,7]
[423627429,1780264253000,-800.0,0.00038728,14]
[423627399,1780264253000,-200.77908344,0.0003854,30]
[423627401,1780264253000,-500.0,0.00038548,7]
[423627397,1780264253000,-500.0,0.0003854,30]
[423627398,1780264253000,-390.56574748,0.0003854,30]
[423627402,1780264253000,-500.0,0.00038548,7]
[423627404,1780264253000,-518.8,0.00038548,7]
[423627407,1780264253000,-5000.0,0.00038566,2]
[423627405,1780264253000,-343.11,0.0003855,7]
[423627408,1780264253000,-5000.0,0.00038566,2]
[423627403,1780264253000,-500.0,0.00038548,7]
[423627409,1780264253000,-5000.0,0.00038566,2]
[423627412,1780264253000,-250.0,0.00038566,2]
[423627411,1780264253000,-250.0,0.00038566,2]
[423627406,1780264253000,-5000.0,0.00038566,2]
[423627421,1780264253000,-2350.0309,0.0003864,30]
[423627419,1780264253000,-150.0,0.00038599,7]
[423627410,1780264253000,-250.0,0.00038566,2]
[423627417,1780264253000,-1585.14,0.00038577,7]
[423627418,1780264253000,-1481.18,0.00038593,7]
[423627415,1780264253000,-1585.14,0.00038577,7]
[423627416,1780264253000,-1585.14,0.00038577,7]
[423627420,1780264253000,-151.0,0.000386,120]
[423627424,1780264253000,-1184.8224,0.000387,120]
[423627423,1780264253000,-162.73,0.00038674,30]
[423627413,1780264253000,-250.0,0.00038566,2]
[423627422,1780264253000,-1590.0,0.00038671,11]
[423627414,1780264253000,-1585.14,0.00038577,7]
[423627425,1780264253000,-989.20309683,0.00038713,120]
[423627499,1780264254000,-880417.0214975,0.00039131,2]
[423627508,1780264254000,-2000.0,0.0003914,110]
[423627502,1780264254000,-445.7058943,0.00039131,2]
[423627504,1780264254000,-2000.0,0.00039139,110]
[423627500,1780264254000,-19379.9825245,0.00039131,2]
[423627497,1780264254000,-310.0,0.0003912,57]
[423627493,1780264254000,-304.826273,0.000391,2]
[423627496,1780264254000,-1000.0,0.00039116,90]
[423627492,1780264254000,-298.826273,0.000391,2]
[423627494,1780264254000,-301.826273,0.000391,2]
[423627490,1780264254000,-316.826274,0.000391,2]
[423627506,1780264254000,-2000.0,0.0003914,110]
[423627498,1780264254000,-116504.9639957,0.00039129,2]
[423627503,1780264254000,-968.33,0.00039132,7]
[423627519,1780264254000,-2000.0,0.00039197,16]
[423627514,1780264254000,-300.0,0.00039178,120]
[423627505,1780264254000,-2000.0,0.0003914,110]
[423627507,1780264254000,-2000.0,0.0003914,110]
[423627509,1780264254000,-552.44,0.00039145,30]
[423627510,1780264254000,-1537.03,0.00039145,30]
[423627511,1780264254000,-555.0,0.00039153,10]
[423627512,1780264254000,-9730.4267306,0.0003916,2]
[423627516,1780264254000,-7193.59,0.00039191,2]
[423627526,1780264254000,-320.599578,0.000392,2]
[423627515,1780264254000,-396.353326,0.00039178,120]
[423627527,1780264254000,-151.0,0.000392,120]
[423627528,1780264254000,-3000.0,0.00039202,30]
[423627517,1780264254000,-2319.0,0.00039194,11]
[423627495,1780264254000,-3221.58609734,0.00039116,2]
[423627513,1780264254000,-300.0,0.00039178,120]
[423627501,1780264254000,-31895.6623096,0.00039131,2]
[423627461,1780264254000,-5000.0,0.00038964,2]
[423627486,1780264254000,-1000.0,0.00039076,90]
[423627459,1780264254000,-5000.0,0.00038964,2]
[423627458,1780264254000,-1250.0,0.00038957,2]
[423627462,1780264254000,-250.0,0.00038964,2]
[423627460,1780264254000,-5000.0,0.00038964,2]
[423627464,1780264254000,-250.0,0.00038964,2]
[423627474,1780264254000,-1399.99490414,0.00038992,2]
[423627467,1780264254000,-2325.02189689,0.00038974,2]
[423627463,1780264254000,-250.0,0.00038964,2]
[423627466,1780264254000,-2137.03815915,0.00038974,2]
[423627476,1780264254000,-1377.42282658,0.00038994,30]
[423627468,1780264254000,-1436.42311017,0.00038974,2]
[423627475,1780264254000,-151.0,0.00038992,14]
[423627469,1780264254000,-1984.301297,0.00038974,2]
[423627465,1780264254000,-2309.02275959,0.00038974,2]
[423627491,1780264254000,-301.826273,0.000391,2]
[423627473,1780264254000,-1590.0,0.00038991,11]
[423627471,1780264254000,-1359.64726545,0.00038978,2]
[423627472,1780264254000,-20839.59444734,0.00038983,2]
[423627478,1780264254000,-699999.999999,0.00038995,30]
[423627477,1780264254000,-2005.9555727,0.00038994,30]
[423627524,1780264254000,-326.599578,0.000392,2]
[423627483,1780264254000,-310.0,0.0003902,56]
[423627488,1780264254000,-150.72,0.000391,9]
[423627489,1780264254000,-89431.0,0.000391,7]
[423627480,1780264254000,-1392.33471063,0.00039,120]
[423627482,1780264254000,-166.0,0.00039,120]
[423627479,1780264254000,-1459.0,0.00039,7]
[423627487,1780264254000,-1286.62,0.000391,9]
[423627484,1780264254000,-175.28622889,0.00039031,120]
[423627485,1780264254000,-2110.0,0.00039048,2]
[423627470,1780264254000,-1370.93002041,0.00038974,2]
[423627522,1780264254000,-323.599578,0.000392,2]
[423627481,1780264254000,-153.0,0.00039,30]
[423627521,1780264254000,-344.599582,0.000392,2]
[423627564,1780264254000,-295.23856588,0.00039299,30]
[423627566,1780264254000,-206.16125616,0.00039299,30]
[423627558,1780264254000,-200.0,0.00039299,30]
[423627562,1780264254000,-157.84224006,0.00039299,30]
[423627561,1780264254000,-554.85521661,0.00039299,46]
[423627565,1780264254000,-526.34906063,0.00039299,30]
[423627560,1780264254000,-500.0,0.00039299,30]
[423627563,1780264254000,-159.00591841,0.00039299,30]
[423627567,1780264254000,-731.89793765,0.00039299,30]
[423627570,1780264254000,-221.0,0.000393,120]
[423627583,1780264254000,-644.79446245,0.00039331,30]
[423627581,1780264254000,-8882.6885148,0.00039331,30]
[423627582,1780264254000,-206.33422798,0.00039331,30]
[423627580,1780264254000,-1660.0,0.00039329,7]
[423627568,1780264254000,-167.88477092,0.00039299,30]
[423627571,1780264254000,-200.0,0.000393,10]
[423627575,1780264254000,-1554.63042779,0.00039315,2]
[423627577,1780264254000,-386.0,0.0003932,2]
[423627576,1780264254000,-453.05809892,0.00039316,2]